[Event "*** Titled Tuesday 3|2 Blitz"]
[Site "Chess.com"]
[Date "2016.10.04"]
[Round "1"]
[White "ilya261991"]
[Black "RamonManon0g"]
[Result "1-0"]
[WhiteElo "2484"]
[BlackElo "2202"]
[TimeControl "180+2"]
[EndTime "11:07:20 PDT"]
[Termination "ilya261991 won by resignation"]

1. d4 {[%clk 0:03:02]} 1... Nf6 {[%clk 0:02:54.2]} 2. c4 {[%clk 0:03:02.7]} 2...
g6 {[%clk 0:02:55.6]} 3. f3 {[%clk 0:03:02.5]} 3... d5 {[%clk 0:02:56.5]} 4.
cxd5 {[%clk 0:03:03.1]} 4... Nxd5 {[%clk 0:02:58.4]} 5. e4 {[%clk 0:03:04.7]}
5... Nb6 {[%clk 0:02:59.9]} 6. Nc3 {[%clk 0:03:06.4]} 6... Bg7 {[%clk
0:03:01.2]} 7. Be3 {[%clk 0:03:08.1]} 7... Nc6 {[%clk 0:03:02.5]} 8. Bb5 {[%clk
0:03:06.8]} 8... O-O {[%clk 0:03:01.7]} 9. Nge2 {[%clk 0:03:05]} 9... Bd7 {[%clk
0:02:47.2]} 10. Rc1 {[%clk 0:02:59]} 10... a6 {[%clk 0:02:48.4]} 11. Bxc6 {[%clk
0:02:50.2]} 11... Bxc6 {[%clk 0:02:49.7]} 12. d5 {[%clk 0:02:51.3]} 12... Bd7
{[%clk 0:02:49.4]} 13. Bd4 {[%clk 0:02:51.8]} 13... e5 {[%clk 0:02:46.7]} 14.
dxe6 {[%clk 0:02:52.6]} 14... Bxe6 {[%clk 0:02:47.7]} 15. Bxg7 {[%clk
0:02:52.8]} 15... Kxg7 {[%clk 0:02:45.4]} 16. Qd4+ {[%clk 0:02:52.5]} 16... Qxd4
{[%clk 0:02:44.1]} 17. Nxd4 {[%clk 0:02:54.4]} 17... Bd7 {[%clk 0:02:29.1]} 18.
Nce2 {[%clk 0:02:51.1]} 18... Rac8 {[%clk 0:02:27.5]} 19. Kf2 {[%clk 0:02:47.6]}
19... c5 {[%clk 0:02:14.8]} 20. Nb3 {[%clk 0:02:47.8]} 20... Na4 {[%clk
0:02:10.8]} 21. Rc2 {[%clk 0:02:45.9]} 21... Be6 {[%clk 0:02:03.9]} 22. Nf4
{[%clk 0:02:44.8]} 22... c4 {[%clk 0:01:50.7]} 23. Nxe6+ {[%clk 0:02:40.4]}
23... fxe6 {[%clk 0:01:51.8]} 24. Nd4 {[%clk 0:02:41.7]} 24... Kf6 {[%clk
0:01:52.8]} 25. Rhc1 {[%clk 0:02:41.3]} 25... b5 {[%clk 0:01:50.3]} 26. b3
{[%clk 0:02:40]} 26... Nc5 {[%clk 0:01:43.9]} 27. Ke3 {[%clk 0:02:33.5]} 27...
Nd3 {[%clk 0:01:43.8]} 28. Rd1 {[%clk 0:02:27.7]} 28... Nb4 {[%clk 0:01:37]} 29.
Rf2 {[%clk 0:02:13.7]} 29... e5 {[%clk 0:01:28.5]} 30. Nc2 {[%clk 0:02:07.3]}
30... Nxa2 {[%clk 0:01:24.8]} 31. bxc4 {[%clk 0:02:06.9]} 31... Rxc4 {[%clk
0:01:23.2]} 32. Rd6+ {[%clk 0:02:07.8]} 32... Kg7 {[%clk 0:01:19.2]} 33. Rfd2
{[%clk 0:01:47.3]} 33... a5 {[%clk 0:01:10.6]} 34. Kf2 {[%clk 0:01:43.7]} 34...
b4 {[%clk 0:01:08.9]} 35. Ne3 {[%clk 0:01:44.7]} 35... Rc5 {[%clk 0:00:59.1]}
36. Rxa2 {[%clk 0:01:44.9]} 36... Ra8 {[%clk 0:00:52]} 37. Rb6 {[%clk 0:01:44]}
37... Rc3 {[%clk 0:00:48.7]} 38. Rxb4 {[%clk 0:01:43.5]} 38... Rd8 {[%clk
0:00:12.9]} 39. Rb7+ {[%clk 0:01:39.8]} 39... Kh6 {[%clk 0:00:12]} 40. Nd5
{[%clk 0:01:41.1]} 40... Rc5 {[%clk 0:00:10.3]} 41. h4 {[%clk 0:01:41.6]} 1-0

[Event "*** Titled Tuesday 3|2 Blitz"]
[Site "Chess.com"]
[Date "2016.10.04"]
[Round "1"]
[White "Er_is_geen_hoop_meer"]
[Black "DavitZarkua"]
[Result "0-1"]
[WhiteElo "2256"]
[BlackElo "2523"]
[TimeControl "180+2"]
[EndTime "11:07:32 PDT"]
[Termination "DavitZarkua won by resignation"]

1. Nf3 {[%clk 0:03:02]} 1... d5 {[%clk 0:03:00]} 2. g3 {[%clk 0:03:02.8]} 2...
Nc6 {[%clk 0:02:59.5]} 3. d4 {[%clk 0:03:02.7]} 3... Bg4 {[%clk 0:02:58.5]} 4.
Bg2 {[%clk 0:03:03.5]} 4... Nf6 {[%clk 0:02:52.6]} 5. h3 {[%clk 0:03:04]} 5...
Bxf3 {[%clk 0:02:52.8]} 6. Bxf3 {[%clk 0:03:05.9]} 6... e5 {[%clk 0:02:53.9]} 7.
dxe5 {[%clk 0:03:06.8]} 7... Nxe5 {[%clk 0:02:55.6]} 8. Bg2 {[%clk 0:03:08.7]}
8... c6 {[%clk 0:02:56.1]} 9. O-O {[%clk 0:03:08.6]} 9... Bc5 {[%clk 0:02:55.9]}
10. Nd2 {[%clk 0:03:06.7]} 10... O-O {[%clk 0:02:55.8]} 11. e3 {[%clk
0:03:05.4]} 11... Re8 {[%clk 0:02:55.5]} 12. b3 {[%clk 0:03:00.1]} 12... Qd6
{[%clk 0:02:50.9]} 13. a3 {[%clk 0:02:59.3]} 13... Rad8 {[%clk 0:02:51.1]} 14.
b4 {[%clk 0:02:59.5]} 14... Bb6 {[%clk 0:02:51.3]} 15. Bb2 {[%clk 0:03:00.7]}
15... d4 {[%clk 0:02:43.1]} 16. e4 {[%clk 0:02:58.8]} 16... d3 {[%clk
0:02:40.5]} 17. c4 {[%clk 0:02:53.4]} 17... Bd4 {[%clk 0:02:39.5]} 18. Bxd4
{[%clk 0:02:54.3]} 18... Qxd4 {[%clk 0:02:39.2]} 19. Qb3 {[%clk 0:02:56]} 19...
h5 {[%clk 0:02:34.9]} 20. Kh1 {[%clk 0:02:53.6]} 20... h4 {[%clk 0:02:34.9]} 21.
f4 {[%clk 0:02:45.6]} 21... Ng6 {[%clk 0:02:35.2]} 22. g4 {[%clk 0:02:35.7]}
22... Qe3 {[%clk 0:02:29.2]} 23. Qb2 {[%clk 0:02:20.5]} 23... Nxe4 {[%clk
0:01:42.8]} 24. Nxe4 {[%clk 0:02:14.8]} 24... Rxe4 {[%clk 0:01:42.6]} 25. Bxe4
{[%clk 0:02:16.7]} 25... Qxe4+ {[%clk 0:01:43.8]} 26. Qg2 {[%clk 0:02:17.6]}
26... Qxc4 {[%clk 0:01:44.2]} 27. f5 {[%clk 0:02:18.9]} 27... Nf4 {[%clk
0:01:42.7]} 28. Qf3 {[%clk 0:02:16.9]} 28... Ne2 {[%clk 0:01:42.8]} 29. Rfd1
{[%clk 0:02:08.9]} 29... Ng3+ {[%clk 0:01:33.8]} 30. Kg2 {[%clk 0:02:08.6]}
30... Ne4 {[%clk 0:01:23.9]} 31. Qf4 {[%clk 0:01:54.8]} 31... Qc2+ {[%clk
0:01:20.5]} 32. Kg1 {[%clk 0:01:51.2]} 32... Nc3 {[%clk 0:01:18.7]} 33. Qf3
{[%clk 0:01:26.3]} 33... Nxd1 {[%clk 0:01:14.7]} 34. Rxd1 {[%clk 0:01:28.2]}
34... d2 {[%clk 0:01:15.4]} 35. f6 {[%clk 0:01:25.8]} 35... Qd3 {[%clk
0:01:13.1]} 36. Qf4 {[%clk 0:01:20.3]} 36... Qd4+ {[%clk 0:01:11.2]} 37. Qxd4
{[%clk 0:01:16.8]} 37... Rxd4 {[%clk 0:01:13.1]} 38. fxg7 {[%clk 0:01:17.9]}
38... Kxg7 {[%clk 0:01:14.2]} 39. Kf2 {[%clk 0:01:18.8]} 39... Kf6 {[%clk
0:01:13.3]} 40. Ke2 {[%clk 0:01:20.1]} 40... Ke5 {[%clk 0:01:13.9]} 41. Rxd2
{[%clk 0:01:19.8]} 41... Rxd2+ {[%clk 0:01:13.9]} 42. Kxd2 {[%clk 0:01:21.7]}
42... Kf4 {[%clk 0:01:14.9]} 43. Ke2 {[%clk 0:01:23.3]} 43... Kg3 {[%clk
0:01:14.7]} 44. Ke3 {[%clk 0:01:25.2]} 44... Kxh3 {[%clk 0:01:14.9]} 45. Kf3
{[%clk 0:01:27.1]} 45... b6 {[%clk 0:01:13.7]} 46. g5 {[%clk 0:01:25.4]} 46...
c5 {[%clk 0:01:14.9]} 47. b5 {[%clk 0:01:25.4]} 47... c4 {[%clk 0:01:15.4]} 48.
a4 {[%clk 0:01:26.6]} 48... c3 {[%clk 0:01:16.1]} 49. g6 {[%clk 0:01:25]} 49...
fxg6 {[%clk 0:01:14.7]} 50. a5 {[%clk 0:01:26]} 50... c2 {[%clk 0:01:16.6]} 51.
axb6 {[%clk 0:01:26.8]} 51... axb6 {[%clk 0:01:16.9]} 52. Kf2 {[%clk 0:01:27.5]}
52... c1=Q {[%clk 0:01:17.6]} 0-1

[Event "*** Titled Tuesday 3|2 Blitz"]
[Site "Chess.com"]
[Date "2016.10.04"]
[Round "1"]
[White "Lukianoo"]
[Black "David_Klein"]
[Result "1-0"]
[WhiteElo "2730"]
[BlackElo "2385"]
[TimeControl "180+2"]
[EndTime "11:07:53 PDT"]
[Termination "Lukianoo won by resignation"]

1. e4 {[%clk 0:03:01.7]} 1... e5 {[%clk 0:02:56]} 2. d4 {[%clk 0:03:00.2]} 2...
exd4 {[%clk 0:02:56.7]} 3. Qxd4 {[%clk 0:02:59.3]} 3... Nc6 {[%clk 0:02:57.5]}
4. Qe3 {[%clk 0:02:57.8]} 4... Nf6 {[%clk 0:02:57.4]} 5. Nc3 {[%clk 0:02:58.4]}
5... Bb4 {[%clk 0:02:57.9]} 6. Bd2 {[%clk 0:02:55.4]} 6... O-O {[%clk
0:02:58.5]} 7. O-O-O {[%clk 0:02:54.6]} 7... Re8 {[%clk 0:02:58.6]} 8. Bc4
{[%clk 0:02:50.6]} 8... Na5 {[%clk 0:02:23.4]} 9. Be2 {[%clk 0:02:49.1]} 9... d5
{[%clk 0:02:00.6]} 10. Nxd5 {[%clk 0:02:49.3]} 10... Bxd2+ {[%clk 0:01:54.4]}
11. Qxd2 {[%clk 0:02:45.7]} 11... Nc6 {[%clk 0:01:29.7]} 12. Qf4 {[%clk
0:02:44]} 12... Nxd5 {[%clk 0:01:28]} 13. exd5 {[%clk 0:02:39.2]} 13... Ne5
{[%clk 0:01:28.8]} 14. Nf3 {[%clk 0:02:34.4]} 14... Ng6 {[%clk 0:01:29.9]} 15.
Qd2 {[%clk 0:02:28.9]} 15... Bg4 {[%clk 0:01:30.9]} 16. h3 {[%clk 0:02:17.6]}
16... Bxf3 {[%clk 0:01:31.8]} 17. Bxf3 {[%clk 0:02:16.6]} 17... Qd6 {[%clk
0:01:33.4]} 18. Rhe1 {[%clk 0:02:13.4]} 18... Ne5 {[%clk 0:01:30.7]} 19. Re3
{[%clk 0:02:05.6]} 19... Nc4 {[%clk 0:01:26.4]} 20. Rxe8+ {[%clk 0:02:04]} 20...
Rxe8 {[%clk 0:01:28.3]} 21. Qd4 {[%clk 0:02:00.8]} 21... Qa6 {[%clk 0:01:14.9]}
22. a3 {[%clk 0:01:53.2]} 22... Nd6 {[%clk 0:01:11.6]} 23. Qc5 {[%clk
0:01:32.7]} 23... Re7 {[%clk 0:00:57.1]} 24. Kb1 {[%clk 0:01:22.2]} 24... g6
{[%clk 0:00:54.9]} 25. h4 {[%clk 0:01:16.9]} 25... h5 {[%clk 0:00:54.3]} 26. g4
{[%clk 0:00:57.6]} 26... hxg4 {[%clk 0:00:54.1]} 27. Bxg4 {[%clk 0:00:59.5]}
27... Qa4 {[%clk 0:00:54.2]} 28. Rd4 {[%clk 0:00:54.2]} 28... Qa6 {[%clk
0:00:51.4]} 29. c4 {[%clk 0:00:49.6]} 29... Qa4 {[%clk 0:00:43.8]} 30. Qb4
{[%clk 0:00:46]} 30... Qa6 {[%clk 0:00:41.3]} 31. c5 {[%clk 0:00:41.9]} 31...
Qf1+ {[%clk 0:00:36.7]} 32. Rd1 {[%clk 0:00:42.2]} 32... Qg2 {[%clk 0:00:32.3]}
33. cxd6 {[%clk 0:00:41.8]} 33... Re4 {[%clk 0:00:32.5]} 34. dxc7 {[%clk
0:00:34.6]} 34... Qxg4 {[%clk 0:00:32.1]} 35. c8=Q+ {[%clk 0:00:30.5]} 35...
Qxc8 {[%clk 0:00:32.7]} 36. Qxe4 {[%clk 0:00:31.5]} 1-0

[Event "*** Titled Tuesday 3|2 Blitz"]
[Site "Chess.com"]
[Date "2016.10.04"]
[Round "1"]
[White "Spas_Kozhuharov"]
[Black "LonesomeGeorge1"]
[Result "1-0"]
[WhiteElo "2473"]
[BlackElo "2173"]
[TimeControl "180+2"]
[EndTime "11:08:09 PDT"]
[Termination "Spas_Kozhuharov won by resignation"]

1. d4 {[%clk 0:02:52.4]} 1... Nf6 {[%clk 0:03:00]} 2. c4 {[%clk 0:02:51.2]} 2...
g6 {[%clk 0:03:00.9]} 3. Nc3 {[%clk 0:02:49.3]} 3... Bg7 {[%clk 0:03:01.6]} 4.
e4 {[%clk 0:02:48]} 4... d6 {[%clk 0:03:02.9]} 5. f3 {[%clk 0:02:48.3]} 5... O-O
{[%clk 0:03:03.7]} 6. Be3 {[%clk 0:02:48.9]} 6... c5 {[%clk 0:03:04.7]} 7. d5
{[%clk 0:02:46.8]} 7... e6 {[%clk 0:03:01.5]} 8. Qd2 {[%clk 0:02:46.7]} 8...
exd5 {[%clk 0:02:58.8]} 9. cxd5 {[%clk 0:02:48.6]} 9... a6 {[%clk 0:02:57.7]}
10. a4 {[%clk 0:02:48.8]} 10... h5 {[%clk 0:02:56.8]} 11. Be2 {[%clk 0:02:42]}
11... Re8 {[%clk 0:02:40.4]} 12. Bd1 {[%clk 0:02:31.3]} 12... Nh7 {[%clk
0:02:25.1]} 13. Nge2 {[%clk 0:02:31.5]} 13... f5 {[%clk 0:02:23.3]} 14. O-O
{[%clk 0:02:18.2]} 14... Nd7 {[%clk 0:02:06.5]} 15. exf5 {[%clk 0:02:17.7]}
15... gxf5 {[%clk 0:02:08.4]} 16. Bh6 {[%clk 0:02:13.6]} 16... Ndf6 {[%clk
0:01:38.9]} 17. Bxg7 {[%clk 0:02:10.6]} 17... Kxg7 {[%clk 0:01:40.8]} 18. Bc2
{[%clk 0:02:04.4]} 18... Qe7 {[%clk 0:01:02.9]} 19. Ng3 {[%clk 0:02:00.6]} 19...
Qe5 {[%clk 0:00:42.7]} 20. Bxf5 {[%clk 0:01:33.5]} 20... Bxf5 {[%clk 0:00:19.1]}
21. Rae1 {[%clk 0:01:33.4]} 21... Be4 {[%clk 0:00:15.6]} 22. Ngxe4 {[%clk
0:01:17.9]} 22... Nxe4 {[%clk 0:00:12.8]} 23. Rxe4 {[%clk 0:01:12.9]} 23... Qf6
{[%clk 0:00:13.5]} 24. Rfe1 {[%clk 0:01:11]} 24... Rxe4 {[%clk 0:00:14.6]} 25.
Nxe4 {[%clk 0:01:12.5]} 25... Qg6 {[%clk 0:00:15.2]} 26. Qf4 {[%clk 0:01:10.1]}
26... Rd8 {[%clk 0:00:15.7]} 27. h4 {[%clk 0:01:08.4]} 27... Rd7 {[%clk
0:00:13]} 28. a5 {[%clk 0:01:05.9]} 28... Nf8 {[%clk 0:00:12.7]} 29. Kf2 {[%clk
0:01:04.2]} 29... Qh6 {[%clk 0:00:13.5]} 30. Ng5 {[%clk 0:01:02.8]} 30... Qf6
{[%clk 0:00:12.6]} 31. Ne6+ {[%clk 0:01:00]} 31... Nxe6 {[%clk 0:00:13.2]} 32.
Qxf6+ {[%clk 0:01:01.3]} 32... Kxf6 {[%clk 0:00:14.2]} 33. Rxe6+ {[%clk
0:01:03.2]} 33... Kg7 {[%clk 0:00:11.8]} 34. g4 {[%clk 0:01:03.4]} 34... hxg4
{[%clk 0:00:11.3]} 35. fxg4 {[%clk 0:01:04.4]} 35... Rf7+ {[%clk 0:00:13.2]} 36.
Kg3 {[%clk 0:01:05.2]} 36... Rd7 {[%clk 0:00:14.2]} 37. h5 {[%clk 0:01:05.4]}
37... Kh7 {[%clk 0:00:15.3]} 38. g5 {[%clk 0:01:06.4]} 38... Kg7 {[%clk
0:00:14.3]} 39. Kg4 {[%clk 0:01:07.6]} 39... Kh7 {[%clk 0:00:15.3]} 40. h6
{[%clk 0:01:08.5]} 1-0

[Event "*** Titled Tuesday 3|2 Blitz"]
[Site "Chess.com"]
[Date "2016.10.04"]
[Round "1"]
[White "RobertoJBM"]
[Black "Quiet_Desperation"]
[Result "1-0"]
[WhiteElo "2521"]
[BlackElo "2244"]
[TimeControl "180+2"]
[EndTime "11:08:25 PDT"]
[Termination "RobertoJBM won by resignation"]

1. d4 {[%clk 0:02:58.8]} 1... Nf6 {[%clk 0:02:59]} 2. Nf3 {[%clk 0:02:58]} 2...
e6 {[%clk 0:02:50.8]} 3. e3 {[%clk 0:02:58.3]} 3... b6 {[%clk 0:02:50.5]} 4. Bd3
{[%clk 0:03:00.2]} 4... Bb7 {[%clk 0:02:51.1]} 5. O-O {[%clk 0:03:01.4]} 5...
Be7 {[%clk 0:02:51.8]} 6. b3 {[%clk 0:03:02.8]} 6... O-O {[%clk 0:02:52.8]} 7.
Bb2 {[%clk 0:03:04.2]} 7... c5 {[%clk 0:02:36.8]} 8. Nbd2 {[%clk 0:03:04.9]}
8... cxd4 {[%clk 0:02:35.8]} 9. exd4 {[%clk 0:03:05.5]} 9... Nc6 {[%clk
0:02:36.4]} 10. a3 {[%clk 0:03:05.5]} 10... Rc8 {[%clk 0:02:37.5]} 11. Re1
{[%clk 0:03:06.4]} 11... d6 {[%clk 0:02:37.9]} 12. Qe2 {[%clk 0:03:07.7]} 12...
Qc7 {[%clk 0:02:38.6]} 13. c4 {[%clk 0:03:08.3]} 13... Qb8 {[%clk 0:02:39.5]}
14. Rac1 {[%clk 0:03:09.1]} 14... Qa8 {[%clk 0:02:40.6]} 15. Qe3 {[%clk
0:03:08.6]} 15... Na5 {[%clk 0:02:29.6]} 16. b4 {[%clk 0:03:09.5]} 16... Nc6
{[%clk 0:02:30.7]} 17. Red1 {[%clk 0:03:09.1]} 17... Rfe8 {[%clk 0:02:27.5]} 18.
h3 {[%clk 0:03:07.2]} 18... Bf8 {[%clk 0:02:28.6]} 19. Bf1 {[%clk 0:03:05.8]}
19... Ne7 {[%clk 0:02:27.9]} 20. Qd3 {[%clk 0:03:05.5]} 20... Ng6 {[%clk
0:02:26.9]} 21. Qe3 {[%clk 0:03:05.9]} 21... e5 {[%clk 0:02:23.6]} 22. d5 {[%clk
0:03:05.9]} 22... h6 {[%clk 0:02:18.9]} 23. Ne4 {[%clk 0:03:02.7]} 23... Nxe4
{[%clk 0:02:17.5]} 24. Qxe4 {[%clk 0:03:04.6]} 24... Rcd8 {[%clk 0:02:19]} 25.
Bd3 {[%clk 0:03:05.4]} 25... Bc8 {[%clk 0:02:19.5]} 26. Bb1 {[%clk 0:03:05.7]}
26... f5 {[%clk 0:02:18.6]} 27. Qe2 {[%clk 0:03:06.6]} 27... Nf4 {[%clk
0:02:17.1]} 28. Qd2 {[%clk 0:03:07.8]} 28... Qb7 {[%clk 0:02:12.8]} 29. Re1
{[%clk 0:03:06]} 29... Qf7 {[%clk 0:02:08]} 30. Kh2 {[%clk 0:03:00.9]} 30... Qh5
{[%clk 0:02:02.6]} 31. Ng1 {[%clk 0:02:58.8]} 31... Be7 {[%clk 0:01:58.7]} 32.
Qd1 {[%clk 0:02:54.9]} 32... Qg6 {[%clk 0:01:40.8]} 33. g3 {[%clk 0:02:55.7]}
33... Bg5 {[%clk 0:01:42]} 34. gxf4 {[%clk 0:02:54.7]} 34... Bxf4+ {[%clk
0:01:43.2]} 35. Kh1 {[%clk 0:02:56.2]} 35... Bxc1 {[%clk 0:01:42]} 36. Bxc1
{[%clk 0:02:58.1]} 36... e4 {[%clk 0:01:37.1]} 37. Bf4 {[%clk 0:02:56.1]} 37...
Qf6 {[%clk 0:01:33.8]} 38. Qd2 {[%clk 0:02:53.9]} 38... g5 {[%clk 0:01:33.7]}
39. Be3 {[%clk 0:02:55.1]} 39... Qg6 {[%clk 0:01:29]} 40. Bd4 {[%clk 0:02:55.6]}
40... Qh5 {[%clk 0:01:29.6]} 41. Qe2 {[%clk 0:02:55.8]} 41... Qxe2 {[%clk
0:01:29.8]} 42. Rxe2 {[%clk 0:02:56.8]} 42... Bd7 {[%clk 0:01:31.3]} 43. Ba2
{[%clk 0:02:57.2]} 43... Kf7 {[%clk 0:01:31]} 44. Kg2 {[%clk 0:02:57.3]} 44...
Kg6 {[%clk 0:01:32.1]} 45. f3 {[%clk 0:02:56.2]} 45... exf3+ {[%clk 0:01:31.8]}
46. Kxf3 {[%clk 0:02:58.1]} 46... Rxe2 {[%clk 0:01:33]} 47. Nxe2 {[%clk
0:02:59.7]} 47... Re8 {[%clk 0:01:30.4]} 48. Bb1 {[%clk 0:03:00.4]} 48... h5
{[%clk 0:01:23.1]} 49. Ng3 {[%clk 0:03:00.5]} 49... h4 {[%clk 0:01:22.7]} 50.
Ne2 {[%clk 0:03:00.9]} 50... Kh5 {[%clk 0:01:22.7]} 51. Kf2 {[%clk 0:02:59.3]}
51... g4 {[%clk 0:01:05.3]} 52. Nf4+ {[%clk 0:03:00]} 52... Kg5 {[%clk
0:01:06.8]} 53. Be3 {[%clk 0:02:57.1]} 53... Kf6 {[%clk 0:00:52.6]} 54. Bd4+
{[%clk 0:02:54]} 54... Kg5 {[%clk 0:00:53.2]} 55. Be3 {[%clk 0:02:55.1]} 55...
Kf6 {[%clk 0:00:52.9]} 56. Bd3 {[%clk 0:02:49.1]} 56... Re7 {[%clk 0:00:43.6]}
57. Bd4+ {[%clk 0:02:48.2]} 57... Kg5 {[%clk 0:00:44.8]} 58. Be3 {[%clk
0:02:49.8]} 58... Kf6 {[%clk 0:00:45.6]} 59. Bf1 {[%clk 0:02:41.8]} 59... g3+
{[%clk 0:00:45.4]} 60. Kf3 {[%clk 0:02:42.4]} 60... Be8 {[%clk 0:00:46.4]} 61.
Bd3 {[%clk 0:02:42.9]} 61... a6 {[%clk 0:00:36.8]} 62. Bd4+ {[%clk 0:02:44]}
62... Kg5 {[%clk 0:00:37.6]} 63. Ne6+ {[%clk 0:02:45.1]} 63... Kh6 {[%clk
0:00:35.1]} 64. Kf4 {[%clk 0:02:45.9]} 64... g2 {[%clk 0:00:30.5]} 65. Bxf5
{[%clk 0:02:34.2]} 65... Bf7 {[%clk 0:00:19.1]} 66. Be3 {[%clk 0:02:35]} 66...
Bxe6 {[%clk 0:00:20.2]} 67. dxe6 {[%clk 0:02:32.7]} 67... Rg7 {[%clk 0:00:21.2]}
68. Bg4 {[%clk 0:02:31.9]} 1-0

[Event "*** Titled Tuesday 3|2 Blitz"]
[Site "Chess.com"]
[Date "2016.10.04"]
[Round "1"]
[White "GrigorGrigorov"]
[Black "johnathan113"]
[Result "1-0"]
[WhiteElo "2546"]
[BlackElo "2278"]
[TimeControl "180+2"]
[EndTime "11:08:54 PDT"]
[Termination "GrigorGrigorov won by resignation"]

1. d4 {[%clk 0:03:02]} 1... Nf6 {[%clk 0:03:00.9]} 2. c4 {[%clk 0:03:02.4]} 2...
g6 {[%clk 0:03:02.2]} 3. g3 {[%clk 0:03:02.6]} 3... c5 {[%clk 0:03:01]} 4. Nf3
{[%clk 0:02:57.4]} 4... cxd4 {[%clk 0:03:01.8]} 5. Nxd4 {[%clk 0:02:57.9]} 5...
Bg7 {[%clk 0:03:03.4]} 6. Bg2 {[%clk 0:02:58.8]} 6... O-O {[%clk 0:03:04.8]} 7.
O-O {[%clk 0:02:58.8]} 7... Nc6 {[%clk 0:03:06.4]} 8. Nc3 {[%clk 0:02:58.2]}
8... Qa5 {[%clk 0:03:07.5]} 9. e3 {[%clk 0:02:47]} 9... Ne5 {[%clk 0:03:05.3]}
10. Qe2 {[%clk 0:02:44.9]} 10... d6 {[%clk 0:03:05.9]} 11. Bd2 {[%clk
0:02:42.6]} 11... Qb6 {[%clk 0:02:42.6]} 12. b3 {[%clk 0:02:40.7]} 12... Bg4
{[%clk 0:02:38.5]} 13. f3 {[%clk 0:02:40.5]} 13... Bd7 {[%clk 0:02:40.2]} 14.
Rac1 {[%clk 0:02:37.9]} 14... Rfc8 {[%clk 0:02:39.2]} 15. Kh1 {[%clk 0:02:38.2]}
15... a6 {[%clk 0:02:36.5]} 16. g4 {[%clk 0:02:31.2]} 16... Nc6 {[%clk
0:02:34.4]} 17. Nc2 {[%clk 0:02:16.3]} 17... Qd8 {[%clk 0:02:22.2]} 18. g5
{[%clk 0:02:08.9]} 18... Ne8 {[%clk 0:02:23.3]} 19. f4 {[%clk 0:02:07.8]} 19...
Nc7 {[%clk 0:02:12.7]} 20. Nd5 {[%clk 0:02:01.1]} 20... Ne6 {[%clk 0:01:58.3]}
21. a4 {[%clk 0:01:47]} 21... Rab8 {[%clk 0:01:47.2]} 22. a5 {[%clk 0:01:40.4]}
22... Nc5 {[%clk 0:01:18.2]} 23. Rb1 {[%clk 0:01:41.1]} 23... Bf5 {[%clk
0:01:12.6]} 24. e4 {[%clk 0:01:42]} 24... Bd7 {[%clk 0:01:11.1]} 25. Nb6 {[%clk
0:01:40.9]} 25... Ne6 {[%clk 0:01:12.3]} 26. Nxc8 {[%clk 0:01:37.9]} 26... Qxc8
{[%clk 0:01:14.2]} 27. Qf2 {[%clk 0:01:28.1]} 27... Nc5 {[%clk 0:01:06.2]} 28.
b4 {[%clk 0:01:13.5]} 28... Na4 {[%clk 0:00:57.1]} 29. Ne3 {[%clk 0:01:01.2]}
29... e6 {[%clk 0:00:53.8]} 30. Ng4 {[%clk 0:00:57.4]} 30... Qd8 {[%clk
0:00:17.8]} 31. e5 {[%clk 0:00:53.8]} 31... dxe5 {[%clk 0:00:13.9]} 32. fxe5
{[%clk 0:00:54.4]} 32... Be8 {[%clk 0:00:15.8]} 33. Bf4 {[%clk 0:00:43.7]} 33...
Nc3 {[%clk 0:00:15]} 34. Rb3 {[%clk 0:00:39.4]} 34... Na4 {[%clk 0:00:13.8]} 35.
Nf6+ {[%clk 0:00:33.8]} 35... Bxf6 {[%clk 0:00:15.2]} 36. gxf6 {[%clk
0:00:34.6]} 36... b6 {[%clk 0:00:15.7]} 37. Qh4 {[%clk 0:00:34.3]} 37... Bd7
{[%clk 0:00:15.6]} 38. Rh3 {[%clk 0:00:33.6]} 38... h5 {[%clk 0:00:16.1]} 39.
Rg3 {[%clk 0:00:34.4]} 39... Kh7 {[%clk 0:00:12.2]} 40. Be4 {[%clk 0:00:35.2]}
40... Kh8 {[%clk 0:00:07.3]} 41. Bxg6 {[%clk 0:00:30.6]} 41... fxg6 {[%clk
0:00:09.2]} 42. Rxg6 {[%clk 0:00:31.5]} 1-0

[Event "*** Titled Tuesday 3|2 Blitz"]
[Site "Chess.com"]
[Date "2016.10.04"]
[Round "1"]
[White "ChessSkool"]
[Black "LyonBeast"]
[Result "0-1"]
[WhiteElo "2383"]
[BlackElo "2741"]
[TimeControl "180+2"]
[EndTime "11:09:01 PDT"]
[Termination "LyonBeast won by resignation"]

1. Nf3 {[%clk 0:02:58.9]} 1... c5 {[%clk 0:02:58]} 2. b3 {[%clk 0:02:58]} 2...
d6 {[%clk 0:02:56.7]} 3. d4 {[%clk 0:02:54]} 3... cxd4 {[%clk 0:02:54]} 4. Nxd4
{[%clk 0:02:55.9]} 4... g6 {[%clk 0:02:51.5]} 5. Bb2 {[%clk 0:02:54.1]} 5... Nf6
{[%clk 0:02:28.8]} 6. g3 {[%clk 0:02:49.6]} 6... Bg7 {[%clk 0:02:26.4]} 7. Bg2
{[%clk 0:02:50.4]} 7... Qa5+ {[%clk 0:02:23.9]} 8. Nd2 {[%clk 0:02:34.1]} 8...
O-O {[%clk 0:02:22.5]} 9. O-O {[%clk 0:02:34.3]} 9... Nc6 {[%clk 0:02:02.2]} 10.
Nxc6 {[%clk 0:02:22.9]} 10... bxc6 {[%clk 0:02:01.5]} 11. Bxc6 {[%clk
0:02:19.1]} 11... Rb8 {[%clk 0:02:02.3]} 12. Bg2 {[%clk 0:02:13.6]} 12... Qh5
{[%clk 0:01:55.8]} 13. Nf3 {[%clk 0:02:07]} 13... Ba6 {[%clk 0:01:52.2]} 14. c4
{[%clk 0:02:01.6]} 14... Rfc8 {[%clk 0:01:42.7]} 15. Rc1 {[%clk 0:01:59]} 15...
Bb7 {[%clk 0:01:41]} 16. h3 {[%clk 0:01:56]} 16... a5 {[%clk 0:01:39.5]} 17. Bd4
{[%clk 0:01:51.6]} 17... Qf5 {[%clk 0:01:26.3]} 18. Qd3 {[%clk 0:01:33.2]} 18...
Qxd3 {[%clk 0:01:01.4]} 19. exd3 {[%clk 0:01:35.1]} 19... e5 {[%clk 0:01:02.9]}
20. Ba7 {[%clk 0:01:30]} 20... Ra8 {[%clk 0:01:01.1]} 21. Be3 {[%clk 0:01:30.8]}
21... Nd7 {[%clk 0:00:53.3]} 22. d4 {[%clk 0:01:17.4]} 22... e4 {[%clk
0:00:53.3]} 23. Ng5 {[%clk 0:01:12.5]} 23... f5 {[%clk 0:00:35.8]} 24. Ne6
{[%clk 0:01:10.5]} 24... Bf6 {[%clk 0:00:35.1]} 25. f3 {[%clk 0:00:50.8]} 25...
Re8 {[%clk 0:00:33.4]} 26. Nc7 {[%clk 0:00:47]} 26... exf3 {[%clk 0:00:33.2]}
27. Nxe8 {[%clk 0:00:42.2]} 27... Rxe8 {[%clk 0:00:32.7]} 28. Bxf3 {[%clk
0:00:41.7]} 28... Rxe3 {[%clk 0:00:31.2]} 29. Bxb7 {[%clk 0:00:42.4]} 29... Bxd4
{[%clk 0:00:30.6]} 30. Bd5+ {[%clk 0:00:36.6]} 30... Kg7 {[%clk 0:00:31.1]} 31.
Rcd1 {[%clk 0:00:36.4]} 31... Rxg3+ {[%clk 0:00:30.6]} 32. Kh2 {[%clk
0:00:34.7]} 32... Be5 {[%clk 0:00:32.1]} 33. Rde1 {[%clk 0:00:15.8]} 33... Rxb3+
{[%clk 0:00:32.4]} 34. Kg2 {[%clk 0:00:15.9]} 34... Rg3+ {[%clk 0:00:33.2]} 35.
Kf2 {[%clk 0:00:15.1]} 35... Rxh3 {[%clk 0:00:30.7]} 36. Rb1 {[%clk 0:00:16.7]}
36... Nc5 {[%clk 0:00:30.3]} 37. Ke2 {[%clk 0:00:16.3]} 37... Ra3 {[%clk
0:00:28.9]} 38. Rb8 {[%clk 0:00:14.1]} 38... Rxa2+ {[%clk 0:00:30]} 39. Ke3
{[%clk 0:00:15.7]} 39... h5 {[%clk 0:00:26.8]} 40. Ra8 {[%clk 0:00:15.3]} 40...
f4+ {[%clk 0:00:24.6]} 41. Kf3 {[%clk 0:00:15.3]} 41... g5 {[%clk 0:00:26.2]}
42. Rg8+ {[%clk 0:00:07.6]} 42... Kh6 {[%clk 0:00:25.2]} 43. Rh8+ {[%clk
0:00:06.6]} 43... Bxh8 {[%clk 0:00:25.6]} 0-1